fUST/lending_fUST_20241120
["ID","MTS","AMOUNT","RATE_DAILY","PERIOD"]
[342744798,1732098645022,-512.06,0.00022191,7]
[342744799,1732098645039,-500.0,0.00022191,7]
[342744800,1732098645055,-500.0,0.00022191,7]
[342744801,1732098645070,-500.0,0.00022191,7]
[342744802,1732098645086,-501.75683811,0.00022191,7]
[342744803,1732098645100,-500.0,0.00022191,7]
[342744804,1732098645114,-500.0,0.00022191,7]
[342744805,1732098645129,-500.0,0.00022191,7]
[342744806,1732098645144,-500.0,0.00022191,7]
[342744807,1732098645158,-623.67545257,0.00022191,7]
[342744808,1732098645173,-500.0,0.00022191,7]
[342744809,1732098645187,-500.0,0.00022191,7]
[342744810,1732098645202,-500.0,0.00022191,7]
[342744811,1732098645217,-367.39326861,0.00022191,7]
[342744812,1732098645232,-501.98743753,0.00022191,7]
[342744813,1732098645246,-151.0,0.00022191,7]
[342744814,1732098645261,-500.0,0.00022191,7]
[342744815,1732098645276,-500.0,0.00022191,7]
[342744816,1732098645290,-518.73,0.00022191,7]
[342744817,1732098645306,-1123.69,0.00022191,7]
[342744818,1732098645321,-183.42921,0.00022191,7]
[342744820,1732098645335,-183.42921,0.00022191,7]
[342744823,1732098645349,-183.42921,0.00022191,7]
[342744824,1732098645364,-500.0,0.00022191,7]
[342744825,1732098645378,-183.42921,0.00022191,7]
[342744826,1732098645392,-500.0,0.00022191,7]
[342744829,1732098645493,-183.42921,0.00022191,7]
[342744830,1732098645506,-183.42921,0.00022191,7]
[342744831,1732098645516,-645.57,0.00022191,7]
[342744832,1732098645526,-151.0,0.00022191,7]
[342744833,1732098645536,-183.42921,0.00022191,7]
[342744834,1732098645546,-183.429216,0.00022191,7]
[342744835,1732098645556,-151.0,0.00022191,7]
[342744836,1732098645565,-151.0,0.00022191,7]
[342744837,1732098645575,-151.0,0.00022191,7]
[342744838,1732098645585,-500.0,0.00022191,7]
[342744839,1732098645594,-500.0,0.00022191,7]
[342744840,1732098645604,-425.57642853,0.00022191,7]
[342744841,1732098645613,-544.68682754,0.00022191,7]
[342744842,1732098645623,-945.04,0.00022191,7]
[342744843,1732098645633,-500.0,0.00022191,7]
[342744844,1732098645642,-500.0,0.00022191,7]
[342744845,1732098645651,-500.0,0.00022191,7]
[342744846,1732098645661,-561.21,0.00022191,7]
[342744847,1732098645670,-253.951533,0.00022191,7]
[342744848,1732098645679,-500.0,0.00022191,7]
[342744849,1732098645689,-253.951533,0.00022191,7]
[342744850,1732098645698,-253.951533,0.00022191,7]
[342744851,1732098645708,-388.945606,0.00022191,7]
[342744852,1732098645718,-253.951535,0.00022191,7]
[342744853,1732098645727,-388.945606,0.00022191,7]
[342744854,1732098645738,-388.945606,0.00022191,7]
[342744855,1732098645749,-388.945606,0.00022191,7]
[342744856,1732098645759,-388.945606,0.00022191,7]
[342744857,1732098645769,-500.0,0.00022191,7]
[342744858,1732098645778,-500.0,0.00022191,7]
[342744859,1732098645790,-388.945606,0.00022191,7]
[342744860,1732098645801,-500.0,0.00022191,7]
[342744861,1732098645811,-388.945606,0.00022191,7]
[342744862,1732098645821,-388.945597,0.00022191,7]
[342744863,1732098645831,-829.07,0.00022191,7]
[342744864,1732098645841,-500.0,0.00022191,7]
[342744865,1732098645851,-599.35,0.00022191,7]
[342744866,1732098645860,-503.33402065,0.00022191,7]
[342744867,1732098645872,-503.80921849,0.00022191,7]
[342744868,1732098645882,-563.42320156,0.00022191,7]
[342744869,1732098645892,-500.0,0.00022191,7]
[342744871,1732098645901,-500.0,0.00022191,7]
[342744873,1732098645911,-500.0,0.00022191,7]
[342744874,1732098645921,-500.0,0.00022191,7]
[342744875,1732098645932,-502.06560758,0.00022191,7]
[342744877,1732098645941,-500.0,0.00022191,7]
[342744879,1732098645951,-500.0,0.00022191,7]
[342744881,1732098645961,-500.0,0.00022191,7]
[342744882,1732098645970,-500.0,0.00022191,7]
[342744884,1732098645980,-500.0,0.00022191,7]
[342744885,1732098645990,-500.0,0.00022191,7]
[342744887,1732098646002,-500.0,0.00022191,7]
[342744889,1732098646013,-838.19,0.00022191,7]
[342744890,1732098646023,-500.0,0.00022191,7]
[342744891,1732098646033,-500.0,0.00022191,7]
[342744892,1732098646044,-504.29457738,0.00022191,7]
[342744893,1732098646054,-500.0,0.00022191,7]
[342744894,1732098646064,-500.0,0.00022191,7]
[342744895,1732098646074,-500.0,0.00022191,7]
[342744896,1732098646084,-510.81792813,0.00022191,7]
[342744897,1732098646094,-1261.05,0.00022191,7]
[342744898,1732098646104,-500.0,0.00022191,7]
[342744899,1732098646115,-572.89,0.00022191,7]
[342744900,1732098646125,-500.0,0.00022191,7]
[342744901,1732098646135,-500.0,0.00022191,7]
[342744902,1732098646144,-500.0,0.00022191,7]
[342744903,1732098646153,-500.0,0.00022191,7]
[342744904,1732098646162,-500.0,0.00022191,7]
[342744905,1732098646172,-503.15702562,0.00022191,7]
[342744906,1732098646182,-500.0,0.00022191,7]
[342744907,1732098646192,-500.0,0.00022191,7]
[342744908,1732098646202,-500.0,0.00022191,7]
[342744909,1732098646212,-500.0,0.00022191,7]
[342744910,1732098646221,-293.444266,0.00022191,7]
[342744911,1732098646231,-500.0,0.00022191,7]
[342744912,1732098646241,-500.0,0.00022191,7]
[342744913,1732098646253,-293.444266,0.00022191,7]
[342744914,1732098646263,-191.16669738,0.00022191,7]
[342744915,1732098646272,-293.444266,0.00022191,7]
[342744916,1732098646282,-293.444266,0.00022191,7]
[342744917,1732098646291,-500.0,0.00022191,7]
[342744918,1732098646301,-501.91868605,0.00022191,7]
[342744919,1732098646310,-293.444266,0.00022191,7]
[342744920,1732098646320,-504.78633064,0.00022191,7]
[342744921,1732098646330,-500.0,0.00022191,7]
[342744922,1732098646339,-293.444266,0.00022191,7]
[342744923,1732098646349,-293.444266,0.00022191,7]
[342744924,1732098646358,-500.0,0.00022191,7]
[342744925,1732098646368,-293.444264,0.00022191,7]
[342744926,1732098646378,-500.0,0.00022191,7]
[342744927,1732098646387,-500.0,0.00022191,7]
[342744928,1732098646396,-760.12,0.00022191,7]
[342744929,1732098646406,-802.01,0.00022191,7]
[342744930,1732098646415,-151.0,0.00022191,7]
[342744931,1732098646424,-774.31,0.00022191,7]
[342744932,1732098646433,-172.4014,0.00022191,7]
[342744933,1732098646442,-500.0,0.00022191,7]
[342744934,1732098646452,-500.0,0.00022191,7]
[342744935,1732098646461,-500.0,0.00022191,7]
[342744936,1732098646528,-151.0,0.00022191,7]
[342744937,1732098646538,-151.0,0.00022191,7]
[342744938,1732098646548,-151.0,0.00022191,7]
[342744939,1732098646557,-151.0,0.00022191,7]
[342744940,1732098646567,-618.19,0.00022191,7]
[342744941,1732098646576,-500.0,0.00022191,7]
[342744942,1732098646585,-500.0,0.00022191,7]
[342744943,1732098646595,-500.0,0.00022191,7]
[342744944,1732098646604,-500.0,0.00022191,7]
[342744945,1732098646614,-500.0,0.00022191,7]
[342744946,1732098646624,-546.97902674,0.00022191,7]
[342744947,1732098646634,-501.09598282,0.00022191,7]
[342744948,1732098646643,-500.0,0.00022191,7]
[342744949,1732098646653,-500.0,0.00022191,7]
[342744950,1732098646663,-500.0,0.00022191,7]
[342744951,1732098646672,-500.0,0.00022191,7]
[342744952,1732098646682,-500.0,0.00022191,7]
[342744953,1732098646691,-789.67,0.00022191,7]
[342744954,1732098646700,-992.86,0.00022191,7]
[342744955,1732098646709,-711.02,0.00022191,7]
[342744956,1732098646719,-500.0,0.00022191,7]
[342744957,1732098646728,-500.0,0.00022191,7]
[342744958,1732098646738,-500.0,0.00022191,7]
[342744959,1732098646747,-500.0,0.00022191,7]
[342744960,1732098646758,-500.0,0.00022191,7]
[342744961,1732098646768,-523.39,0.00022191,7]
[342744962,1732098646777,-500.0,0.00022191,7]
[342744963,1732098646788,-500.0,0.00022191,7]
[342744964,1732098646801,-500.0,0.00022191,7]
[342744965,1732098646811,-157.48698585,0.00022191,7]
[342744966,1732098646820,-500.0,0.00022191,7]
[342744967,1732098646831,-500.0,0.00022191,7]
[342744968,1732098646841,-629.97,0.00022191,7]
[342744969,1732098646850,-211.275714,0.00022191,7]
[342744970,1732098646860,-211.275714,0.00022191,7]
[342744971,1732098646870,-211.275714,0.00022191,7]
[342744972,1732098646879,-211.275714,0.00022191,7]
[342744973,1732098646889,-211.275714,0.00022191,7]
[342744974,1732098646898,-211.275714,0.00022191,7]
[342744975,1732098646907,-500.0,0.00022191,7]
[342744976,1732098646917,-211.275714,0.00022191,7]
[342744977,1732098646927,-211.275704,0.00022191,7]
[342744978,1732098646936,-500.0,0.00022191,7]
[342744979,1732098646945,-500.0,0.00022191,7]
[342744980,1732098646955,-500.0,0.00022191,7]
[342744981,1732098646965,-532.10591443,0.00022191,7]
[342744982,1732098646974,-500.0,0.00022191,7]
[342744983,1732098646984,-500.0,0.00022191,7]
[342744984,1732098646993,-500.0,0.00022191,7]
[342744985,1732098647004,-500.0,0.00022191,7]
[342744986,1732098647014,-781.36,0.00022191,7]
[342744987,1732098647023,-500.0,0.00022191,7]
[342744988,1732098647033,-500.0,0.00022191,7]
[342744989,1732098647042,-500.0,0.00022191,7]
[342744990,1732098647051,-400.34835242,0.00022191,7]
[342744991,1732098647060,-901.62,0.00022191,7]
[342744992,1732098647070,-553.39,0.00022191,7]
[342744993,1732098647079,-500.0,0.00022191,7]
[342744994,1732098647089,-500.0,0.00022191,7]
[342744995,1732098647098,-501.54358747,0.00022191,7]
[342744996,1732098647108,-500.0,0.00022191,7]
[342744997,1732098647117,-500.0,0.00022191,7]
[342744998,1732098647127,-500.0,0.00022191,7]
[342744999,1732098647136,-500.0,0.00022191,7]
[342745000,1732098647146,-505.29673905,0.00022191,7]
[342745001,1732098647156,-500.0,0.00022191,2]
[342745002,1732098647165,-500.0,0.00022191,7]
[342745003,1732098647175,-500.0,0.00022191,7]
[342745004,1732098647184,-500.0,0.00022191,7]
[342745005,1732098647193,-500.0,0.00022191,7]
[342745006,1732098647202,-500.0,0.00022191,7]
[342745007,1732098647211,-902.77,0.00022191,7]
[342745008,1732098647220,-500.0,0.00022191,7]
[342745009,1732098647230,-500.0,0.00022191,7]
[342745010,1732098647239,-500.0,0.00022191,7]
[342745011,1732098647250,-500.0,0.00022191,7]
[342745012,1732098647259,-601.98808332,0.00022191,7]
[342745013,1732098647269,-525.49227046,0.00022191,7]
[342745014,1732098647279,-500.0,0.00022191,7]
[342745015,1732098647288,-500.0,0.00022191,7]
[342745016,1732098647298,-508.9725316,0.00022191,7]
[342745017,1732098647307,-500.0,0.00022191,7]
[342745018,1732098647316,-1000.0,0.00022191,2]
[342745019,1732098647326,-602.4,0.00022191,7]
[342745020,1732098647337,-500.0,0.00022191,7]
[342745021,1732098647348,-902.25,0.00022191,7]
[342745022,1732098647361,-500.0,0.00022191,7]
[342745023,1732098647371,-377.80244126,0.00022191,7]
[342745024,1732098647380,-533.083681,0.00022191,7]
[342745025,1732098647389,-578.43,0.00022191,7]
[342745026,1732098647399,-500.0,0.00022191,7]
[342745027,1732098647409,-533.083681,0.00022191,7]
[342745028,1732098647419,-500.0,0.00022191,7]
[342745029,1732098647428,-533.083681,0.00022191,7]
[342745030,1732098647437,-533.083681,0.00022191,7]
[342745031,1732098647447,-22918.44,0.00022191,7]
[342745032,1732098647457,-500.0,0.00022191,7]
[342745033,1732098647467,-2748.58,0.00022191,7]
[342745034,1732098647476,-642.75835517,0.00022191,7]
[342745035,1732098647486,-306.40522583,0.00022191,7]
[342745036,1732098647495,-533.083681,0.00022191,7]
[342745037,1732098647506,-533.083681,0.00022191,7]
[342745038,1732098647515,-533.083681,0.00022191,7]
[342745039,1732098647525,-533.083682,0.00022191,7]
[342745040,1732098647534,-500.0,0.00022191,7]
[342745041,1732098647543,-500.0,0.00022191,7]
[342745042,1732098647553,-500.0,0.00022191,7]
[342745043,1732098647562,-500.0,0.00022191,7]
[342745044,1732098647572,-228.56513,0.00022191,7]
[342745045,1732098647582,-228.56513,0.00022191,7]
[342745046,1732098647591,-228.56513,0.00022191,7]
[342745047,1732098647601,-228.56513,0.00022191,7]
[342745048,1732098647610,-2295.85,0.00022191,7]
[342745049,1732098647619,-500.0,0.00022191,7]
[342745050,1732098647629,-500.0,0.00022191,7]
[342745051,1732098647638,-500.0,0.00022191,7]
[342745052,1732098647648,-228.56513,0.00022191,7]
[342745053,1732098647657,-228.56513,0.00022191,7]
[342745054,1732098647667,-228.56513,0.00022191,7]
[342745055,1732098647676,-228.565132,0.00022191,7]
[342745056,1732098647686,-500.0,0.00022191,7]
[342745057,1732098647696,-500.0,0.00022191,7]
[342745058,1732098647705,-500.0,0.00022191,7]
[342745059,1732098647715,-1877.29,0.00022191,7]
[342745060,1732098647725,-1194.38,0.00022191,7]
[342745061,1732098647735,-500.0,0.00022191,7]
[342745062,1732098647744,-500.0,0.00022191,7]
[342745063,1732098647755,-500.0,0.00022191,7]
[342745064,1732098647765,-297.92451,0.00022191,7]
[342745065,1732098647774,-297.92451,0.00022191,7]
[342745066,1732098647785,-297.92451,0.00022191,7]
[342745067,1732098647797,-297.92451,0.00022191,7]
[342745068,1732098647808,-500.0,0.00022191,7]
[342745069,1732098647817,-500.0,0.00022191,7]
[342745070,1732098647828,-297.92451,0.00022191,7]
[342745071,1732098647838,-297.92451,0.00022191,7]
[342745072,1732098647848,-739.28,0.00022191,7]
[342745073,1732098647858,-502.83200536,0.00022191,7]
[342745074,1732098647869,-297.92451,0.00022191,7]
[342745075,1732098647879,-297.92450842,0.00022191,7]
[342745076,1732098647888,-500.0,0.00022191,7]
[342745077,1732098647898,-500.0,0.00022191,7]
[342745078,1732098647908,-3097.05,0.00022191,7]
[342745079,1732098647918,-500.0,0.00022191,7]
[342745080,1732098647927,-528.56,0.00022191,7]
[342745081,1732098647937,-924.07,0.00022191,7]
[342745082,1732098647947,-500.0,0.00022191,7]
[342745083,1732098647956,-500.0,0.00022191,7]
[342745084,1732098647965,-500.0,0.00022191,7]
[342745085,1732098647975,-500.0,0.00022191,7]
[342745086,1732098647985,-449.355365,0.00022191,7]
[342745087,1732098647995,-379.12246743,0.00022191,7]
[342745088,1732098648006,-449.355365,0.00022191,7]
[342745089,1732098648016,-1005.07,0.00022191,7]
[342745090,1732098648026,-449.355365,0.00022191,7]
[342745091,1732098648036,-449.355365,0.00022191,7]
[342745092,1732098648045,-500.0,0.00022191,7]
[342745093,1732098648055,-520.37,0.00022191,7]
[342745094,1732098648065,-656.47,0.00022191,7]
[342745095,1732098648074,-549.91576932,0.00022191,7]
[342745096,1732098648083,-449.355365,0.00022191,7]
[342745097,1732098648093,-449.355365,0.00022191,7]
[342745098,1732098648102,-1122.57,0.00022191,7]
[342745099,1732098648112,-449.355365,0.00022191,7]
[342745100,1732098648121,-449.355369,0.00022191,7]
[342745101,1732098648131,-500.0,0.00022191,7]
[342745102,1732098648140,-535.53235314,0.00022191,7]
[342745103,1732098648150,-325.14886673,0.00022191,7]
[342745104,1732098648159,-720.66,0.00022191,7]
[342745105,1732098648168,-500.0,0.00022191,7]
[342745106,1732098648178,-500.0,0.00022191,7]
[342745107,1732098648188,-666.72,0.00022191,7]
[342745108,1732098648198,-911.96,0.00022191,7]
[342745109,1732098648208,-500.0,0.00022191,7]
[342745110,1732098648217,-500.0,0.00022191,7]
[342745111,1732098648227,-357.91687163,0.00022191,7]
[342745112,1732098648236,-500.0,0.00022191,7]
[342745113,1732098648246,-500.0,0.00022191,7]
[342745114,1732098648257,-500.0,0.00022191,7]
[342745115,1732098648267,-500.0,0.00022191,7]
[342745116,1732098648276,-500.0,0.00022191,7]
[342745117,1732098648286,-220.972543,0.00022191,7]
[342745118,1732098648296,-220.972543,0.00022191,7]
[342745119,1732098648305,-220.972543,0.00022191,7]
[342745120,1732098648314,-220.972543,0.00022191,7]
[342745121,1732098648325,-500.0,0.00022191,7]
[342745122,1732098648334,-500.0,0.00022191,7]
[342745123,1732098648344,-500.0,0.00022191,7]
[342745124,1732098648353,-739.82,0.00022191,7]
[342745125,1732098648362,-500.0,0.00022191,7]
[342745126,1732098648372,-500.0,0.00022191,7]
[342745127,1732098648382,-500.0,0.00022191,7]
[342745128,1732098648391,-220.972543,0.00022191,7]
[342745129,1732098648401,-220.972543,0.00022191,7]
[342745130,1732098648410,-220.972543,0.00022191,7]
[342745131,1732098648420,-500.0,0.00022191,7]
[342745132,1732098648429,-220.972539,0.00022191,7]
[342745133,1732098648439,-500.0,0.00022191,7]
[342745134,1732098648448,-500.0,0.00022191,7]
[342745135,1732098648458,-500.0,0.00022191,7]
[342745136,1732098648467,-500.0,0.00022191,7]
[342745137,1732098648476,-526.88,0.00022191,7]
[342745138,1732098648485,-746.377531,0.00022191,7]
[342745139,1732098648494,-746.377531,0.00022191,7]
[342745140,1732098648505,-746.377531,0.00022191,7]
[342745141,1732098648516,-746.377531,0.00022191,7]
[342745142,1732098648525,-472.71865682,0.00022191,7]
[342745143,1732098648535,-415.5305563,0.00022191,7]
[342745144,1732098648545,-500.0,0.00022191,7]
[342745145,1732098648555,-808.24,0.00022191,7]
[342745146,1732098648572,-746.377531,0.00022191,7]
[342745147,1732098648585,-746.377531,0.00022191,7]
[342745148,1732098648595,-746.377531,0.00022191,7]
[342745149,1732098648605,-746.377523,0.00022191,7]
[342745150,1732098648616,-500.0,0.00022191,7]
[342745151,1732098648717,-550.61,0.00022191,7]
[342745152,1732098648727,-500.0,0.00022191,7]
[342745153,1732098648737,-500.0,0.00022191,7]
[342745154,1732098648746,-628.93,0.00022191,7]
[342745155,1732098648756,-500.0,0.00022191,7]
[342745156,1732098648766,-510.44379779,0.00022191,7]
[342745157,1732098648776,-889.46,0.00022191,7]
[342745158,1732098648787,-608.25,0.00022191,7]
[342745159,1732098648798,-533.06304908,0.00022191,7]
[342745160,1732098648808,-4981.89,0.00022191,7]
[342745161,1732098648818,-500.0,0.00022191,7]
[342745162,1732098648829,-501.22723955,0.00022191,7]
[342745163,1732098648840,-500.0,0.00022191,7]
[342745164,1732098648850,-500.0,0.00022191,7]
[342745165,1732098648860,-500.0,0.00022191,7]
[342745166,1732098648871,-584.96,0.00022191,7]
[342745167,1732098648883,-931.0,0.00022191,7]
[342745168,1732098648893,-500.0,0.00022191,7]
[342745169,1732098648903,-500.0,0.00022191,7]
[342745170,1732098648913,-457.53072488,0.00022191,7]
[342745171,1732098648923,-1362.087385,0.00022191,7]
[342745172,1732098648933,-1362.087385,0.00022191,7]
[342745173,1732098648943,-1362.087385,0.00022191,7]
[342745174,1732098648953,-503.3732232,0.00022191,7]
[342745175,1732098648963,-1362.087385,0.00022191,7]
[342745176,1732098648973,-500.0,0.00022191,7]
[342745177,1732098648983,-1362.087385,0.00022191,7]
[342745178,1732098648994,-500.0,0.00022191,7]
[342745179,1732098649006,-1362.087385,0.00022191,7]
[342745180,1732098649016,-1362.087385,0.00022191,7]
[342745181,1732098649027,-500.0,0.00022191,7]
[342745182,1732098649037,-1362.087394,0.00022191,7]
[342745183,1732098649046,-500.0,0.00022191,7]
[342745184,1732098649056,-500.0,0.00022191,7]
[342745185,1732098649065,-500.0,0.00022191,7]
[342745186,1732098649075,-500.0,0.00022191,7]
[342745187,1732098649085,-500.0,0.00022191,7]
[342745188,1732098649095,-500.0,0.00022191,7]
[342745189,1732098649104,-3228.47,0.00022191,7]
[342745190,1732098649114,-500.0,0.00022191,7]
[342745191,1732098649124,-500.0,0.00022191,7]
[342745192,1732098649133,-722.283917,0.00022191,7]
[342745193,1732098649142,-722.283917,0.00022191,7]
[342745194,1732098649152,-500.0,0.00022191,7]
[342745195,1732098649162,-722.283917,0.00022191,7]
[342745196,1732098649171,-722.283917,0.00022191,7]
[342745197,1732098649181,-903.73,0.00022191,7]
[342745198,1732098649191,-151.0,0.00022191,7]
[342745199,1732098649200,-500.0,0.00022191,7]
[342745200,1732098649210,-151.0,0.00022191,7]
[342745201,1732098649219,-500.0,0.00022191,7]
[342745202,1732098649229,-722.283917,0.00022191,7]
[342745203,1732098649238,-151.0,0.00022191,7]
[342745204,1732098649248,-722.283917,0.00022191,7]
[342745205,1732098649259,-197.790572,0.00022191,7]
[342745206,1732098649269,-722.283917,0.00022191,7]
[342745207,1732098649278,-722.283925,0.00022191,7]
[342745208,1732098649288,-500.0,0.00022191,7]
[342745209,1732098649299,-5887.59,0.00022191,7]
[342745210,1732098649309,-500.0,0.00022191,7]
[342745211,1732098649319,-500.0,0.00022191,7]
[342745212,1732098649330,-500.0,0.00022191,7]
[342745213,1732098649340,-500.0,0.00022191,7]
[342745214,1732098649350,-500.0,0.00022191,7]
[342745215,1732098649360,-500.0,0.00022191,7]
[342745216,1732098649370,-500.0,0.00022191,7]
[342745217,1732098649380,-545.65,0.00022191,7]
[342745218,1732098649390,-1286.132068,0.00022191,7]
[342745219,1732098649400,-1286.132068,0.00022191,7]
[342745220,1732098649409,-1286.132068,0.00022191,7]
[342745221,1732098649419,-1286.132068,0.00022191,7]
[342745222,1732098649429,-527.75,0.00022191,7]
[342745223,1732098649438,-500.0,0.00022191,7]
[342745224,1732098649448,-500.0,0.00022191,7]
[342745225,1732098649458,-1286.132068,0.00022191,7]
[342745226,1732098649467,-1286.132068,0.00022191,7]
[342745227,1732098649477,-1286.132068,0.00022191,7]
[342745228,1732098649487,-500.0,0.00022191,7]
[342745229,1732098649496,-1286.13206721,0.00022191,7]
[342745230,1732098649507,-500.0,0.00022191,7]
[342745231,1732098649516,-2693.86,0.00022191,7]
[342745232,1732098649526,-500.0,0.00022191,7]
[342745233,1732098649535,-500.0,0.00022191,7]
[342745234,1732098649545,-151.0,0.00022191,7]
[342745235,1732098649555,-161.688426,0.00022191,7]
[342745236,1732098649565,-500.0,0.00022191,7]
[342745237,1732098649575,-500.0,0.00022191,7]
[342745238,1732098649584,-500.0,0.00022191,7]
[342745239,1732098649593,-500.0,0.00022191,7]
[342745240,1732098649601,-500.0,0.00022191,7]
[342745241,1732098649611,-500.0,0.00022191,7]
[342745242,1732098649620,-500.0,0.00022191,7]
[342745243,1732098649630,-500.0,0.00022191,7]
[342745244,1732098649640,-500.0,0.00022191,7]
[342745245,1732098649649,-503.62888137,0.00022191,7]
[342745246,1732098649659,-571.31,0.00022191,7]
[342745247,1732098649668,-500.0,0.00022191,7]
[342745248,1732098649678,-500.0,0.00022191,7]
[342745249,1732098649689,-500.0,0.00022191,7]
[342745250,1732098649703,-500.0,0.00022191,7]
[342745251,1732098649717,-500.0,0.00022191,7]
[342745252,1732098649731,-500.0,0.00022191,7]
[342745253,1732098649743,-501.40463489,0.00022191,7]
[342745254,1732098649762,-500.0,0.00022191,7]
[342745255,1732098649775,-772.94,0.00022191,7]
[342745256,1732098649789,-500.0,0.00022191,7]
[342745257,1732098649806,-439.29663524,0.00022191,7]
[342745258,1732098649821,-361.072604,0.00022191,7]
[342745259,1732098649836,-361.072604,0.00022191,7]
[342745260,1732098649848,-361.072604,0.00022191,7]
[342745261,1732098649861,-1287.91,0.00022191,7]
[342745262,1732098649878,-361.072604,0.00022191,7]
[342745263,1732098649892,-500.0,0.00022191,7]
[342745264,1732098649905,-3378.45,0.00022191,7]
[342745265,1732098649916,-500.0,0.00022191,7]
[342745266,1732098649929,-361.072604,0.00022191,7]
[342745267,1732098649943,-361.072604,0.00022191,7]
[342745268,1732098649958,-500.0,0.00022191,7]
[342745269,1732098649972,-361.072604,0.00022191,7]
[342745270,1732098649986,-361.072613,0.00022191,7]
[342745271,1732098650001,-720.6,0.00022191,7]
[342745272,1732098650016,-500.0,0.00022191,7]
[342745273,1732098650027,-400.1399312,0.00022191,2]
[342745274,1732098650038,-3743.65,0.00022191,7]
[342745275,1732098650053,-500.0,0.00022191,7]
[342745276,1732098650067,-606.03,0.00022191,7]
[342745277,1732098650079,-500.0,0.00022191,7]
[342745278,1732098650091,-500.0,0.00022191,7]
[342745279,1732098650102,-500.0,0.00022191,7]
[342745280,1732098650116,-500.0,0.00022191,7]
[342745281,1732098650127,-500.0,0.00022191,7]
[342745282,1732098650138,-500.0,0.00022191,7]
[342745283,1732098650151,-523.64195373,0.00022191,7]
[342745284,1732098650162,-500.0,0.00022191,7]
[342745285,1732098650174,-500.0,0.00022191,7]
[342745286,1732098650187,-500.0,0.00022191,7]
[342745287,1732098650199,-975.02,0.00022191,7]
[342745288,1732098650211,-500.0,0.00022191,7]
[342745289,1732098650223,-500.0,0.00022191,7]
[342745290,1732098650235,-11749.68,0.00022191,7]
[342745291,1732098650247,-150.112233,0.000222,6]
[342745292,1732098650260,-150.112233,0.000222,10]
[342745293,1732098650271,-150.112236,0.000222,10]
[342745294,1732098650283,-150.112233,0.000222,10]
[342745295,1732098650294,-150.112237,0.000222,8]
[342745296,1732098650306,-12218.8154595,0.00022265,7]
[342745297,1732098650317,-316.77023646,0.00022465,7]
[342745298,1732098650328,-500.0,0.00022465,7]
[342745299,1732098650338,-500.0,0.00022465,7]
[342745300,1732098650350,-500.0,0.00022465,7]
[342745301,1732098650362,-221.37230413,0.00022465,7]
[342745302,1732098650373,-635.74,0.00022465,7]
[342745303,1732098650384,-500.0,0.00022465,7]
[342745304,1732098650395,-500.0,0.00022465,7]
[342745305,1732098650407,-500.0,0.00022465,7]
[342745306,1732098650418,-500.0,0.00022465,7]
[342745307,1732098650429,-500.0,0.00022465,7]
[342745308,1732098650440,-616.79,0.00022465,7]
[342745309,1732098650451,-500.0,0.00022465,7]
[342745310,1732098650461,-546.58753592,0.00022465,7]